[Event "*** Titled Tuesday 3|2 Blitz"]
[Site "Chess.com"]
[Date "2016.03.01"]
[Round "6"]
[White "Rickstereo"]
[Black "punkmonkZ"]
[Result "0-1"]
[WhiteElo "2180"]
[BlackElo "1973"]
[TimeControl "180+2"]
[EndTime "12:47:10 PST"]
[Termination "punkmonkZ won by resignation"]

1. c4 {[%clk 0:03:01.9]} 1... e5 {[%clk 0:02:55.7]} 2. Nc3 {[%clk 0:03:01.8]}
2... Nf6 {[%clk 0:02:55.8]} 3. Nf3 {[%clk 0:03:02.5]} 3... Nc6 {[%clk
0:02:56.1]} 4. d4 {[%clk 0:03:03.4]} 4... exd4 {[%clk 0:02:56.5]} 5. Nxd4 {[%clk
0:03:03.6]} 5... Bb4 {[%clk 0:02:56.1]} 6. Bg5 {[%clk 0:03:04.4]} 6... d5 {[%clk
0:02:51]} 7. cxd5 {[%clk 0:02:55]} 7... Qxd5 {[%clk 0:02:45.8]} 8. Bxf6 {[%clk
0:02:54.9]} 8... gxf6 {[%clk 0:02:46.9]} 9. Nxc6 {[%clk 0:02:55.2]} 9... Qxc6
{[%clk 0:02:41]} 10. Rc1 {[%clk 0:02:54]} 10... Bd7 {[%clk 0:02:32.2]} 11. Qb3
{[%clk 0:02:52.3]} 11... Ba5 {[%clk 0:02:26.6]} 12. e3 {[%clk 0:02:44.7]} 12...
O-O-O {[%clk 0:02:26.5]} 13. Qc4 {[%clk 0:02:25.3]} 13... Rhg8 {[%clk 0:02:19]}
14. Qxc6 {[%clk 0:02:23.4]} 14... Bxc6 {[%clk 0:02:19.3]} 15. f3 {[%clk
0:02:24.4]} 15... Rde8 {[%clk 0:02:10.8]} 16. Kf2 {[%clk 0:02:15.5]} 16... Bb6
{[%clk 0:02:09.5]} 17. Nd1 {[%clk 0:02:05.3]} 17... f5 {[%clk 0:02:10.5]} 18. g3
{[%clk 0:02:04.1]} 18... Rd8 {[%clk 0:02:06.9]} 19. Bh3 {[%clk 0:01:46.7]} 19...
Rd2+ {[%clk 0:02:06.2]} 20. Ke1 {[%clk 0:01:47.6]} 20... Rxd1+ {[%clk
0:01:49.6]} 21. Rxd1 {[%clk 0:01:34.1]} 21... Bxf3 {[%clk 0:01:51]} 22. Bxf5+
{[%clk 0:01:34.1]} 22... Kb8 {[%clk 0:01:52.3]} 23. Kf2 {[%clk 0:01:01.8]} 23...
Bxh1 {[%clk 0:01:52.4]} 24. Rxh1 {[%clk 0:00:59.9]} 24... Rd8 {[%clk 0:01:45.6]}
25. Re1 {[%clk 0:00:55.7]} 25... h6 {[%clk 0:01:45.7]} 26. Re2 {[%clk
0:00:48.3]} 26... Rd5 {[%clk 0:01:44.4]} 27. Be4 {[%clk 0:00:48.3]} 27... Re5
{[%clk 0:01:33.8]} 28. Kf3 {[%clk 0:00:49.4]} 28... a5 {[%clk 0:01:28.5]} 29.
Kf4 {[%clk 0:00:50.5]} 29... f6 {[%clk 0:01:28.7]} 30. g4 {[%clk 0:00:45.9]}
30... c6 {[%clk 0:01:28.8]} 31. Bf5 {[%clk 0:00:32.3]} 31... Bc7 {[%clk
0:01:25.8]} 32. Kf3 {[%clk 0:00:33.4]} 32... b5 {[%clk 0:01:22.3]} 33. Rd2
{[%clk 0:00:33.1]} 33... c5 {[%clk 0:01:12.9]} 34. Rd7 {[%clk 0:00:29.7]} 34...
c4 {[%clk 0:01:11.7]} 35. Rh7 {[%clk 0:00:30.3]} 35... b4 {[%clk 0:01:12.5]} 36.
Rxh6 {[%clk 0:00:31.5]} 36... c3 {[%clk 0:01:08.6]} 37. bxc3 {[%clk 0:00:31.7]}
37... bxc3 {[%clk 0:01:09.3]} 38. Rxf6 {[%clk 0:00:32.7]} 38... Kb7 {[%clk
0:00:56.5]} 39. Ke2 {[%clk 0:00:27.5]} 39... Bb6 {[%clk 0:00:44.3]} 40. Rf7+
{[%clk 0:00:04.5]} 40... Kb8 {[%clk 0:00:35]} 41. Kd3 {[%clk 0:00:06.1]} 41...
Rxe3+ {[%clk 0:00:35.2]} 42. Kc2 {[%clk 0:00:07.9]} 42... Bd4 {[%clk 0:00:35.1]}
43. Rf8+ {[%clk 0:00:09]} 43... Kc7 {[%clk 0:00:35.7]} 44. Rc8+ {[%clk
0:00:10.5]} 44... Kd6 {[%clk 0:00:36.8]} 45. h4 {[%clk 0:00:11.7]} 45... Rf3
{[%clk 0:00:29.4]} 46. h5 {[%clk 0:00:12.2]} 46... Bf6 {[%clk 0:00:29.3]} 47.
Kb3 {[%clk 0:00:13.1]} 47... Rf2 {[%clk 0:00:26.4]} 48. a4 {[%clk 0:00:13.8]}
48... Rb2+ {[%clk 0:00:26.6]} 49. Ka3 {[%clk 0:00:14.9]} 49... Rb7 {[%clk
0:00:21.8]} 50. Ka2 {[%clk 0:00:15.4]} 50... Rb2+ {[%clk 0:00:22.1]} 51. Ka1
{[%clk 0:00:15.4]} 51... c2 {[%clk 0:00:18.6]} 52. Rf8 {[%clk 0:00:14.4]} 52...
Rb1+ {[%clk 0:00:18.8]} 0-1

[Event "*** Titled Tuesday 3|2 Blitz"]
[Site "Chess.com"]
[Date "2016.03.01"]
[Round "6"]
[White "MITerryble"]
[Black "AndreyOstrovskiy"]
[Result "1-0"]
[WhiteElo "2644"]
[BlackElo "2480"]
[TimeControl "180+2"]
[EndTime "12:47:12 PST"]
[Termination "MITerryble won by resignation"]

1. d4 {[%clk 0:02:56.2]} 1... Nf6 {[%clk 0:03:00.8]} 2. Nf3 {[%clk 0:02:57.3]}
2... e6 {[%clk 0:03:01.8]} 3. c4 {[%clk 0:02:58.1]} 3... b6 {[%clk 0:03:02.8]}
4. g3 {[%clk 0:02:58.9]} 4... Ba6 {[%clk 0:03:03.8]} 5. Qa4 {[%clk 0:02:59.3]}
5... c5 {[%clk 0:03:03.9]} 6. Bg2 {[%clk 0:02:59.8]} 6... Bb7 {[%clk 0:03:04.6]}
7. dxc5 {[%clk 0:03:01]} 7... Bxc5 {[%clk 0:03:04.9]} 8. O-O {[%clk 0:03:02]}
8... Be7 {[%clk 0:03:06]} 9. Nc3 {[%clk 0:03:02.9]} 9... Na6 {[%clk 0:03:07.2]}
10. Rd1 {[%clk 0:03:01.3]} 10... Nc5 {[%clk 0:03:06.1]} 11. Qc2 {[%clk
0:03:02.2]} 11... Qc8 {[%clk 0:03:05.9]} 12. Bf4 {[%clk 0:03:02.4]} 12... O-O
{[%clk 0:03:05.3]} 13. Nb5 {[%clk 0:02:54.9]} 13... Nce4 {[%clk 0:03:00.2]} 14.
Rac1 {[%clk 0:02:45.8]} 14... a6 {[%clk 0:02:45.1]} 15. Nd6 {[%clk 0:02:34.6]}
15... Nxd6 {[%clk 0:02:45.3]} 16. Bxd6 {[%clk 0:02:36.5]} 16... Bxd6 {[%clk
0:02:46.8]} 17. Rxd6 {[%clk 0:02:38.1]} 17... Qc5 {[%clk 0:02:22.9]} 18. Rdd1
{[%clk 0:02:28.8]} 18... Be4 {[%clk 0:02:21.8]} 19. Qd2 {[%clk 0:02:28.2]} 19...
Rac8 {[%clk 0:01:46.6]} 20. b3 {[%clk 0:02:09.8]} 20... h6 {[%clk 0:01:46.2]}
21. Qd6 {[%clk 0:02:07.1]} 21... Rc6 {[%clk 0:01:42.5]} 22. Qxc5 {[%clk
0:02:06.2]} 22... Rxc5 {[%clk 0:01:43.9]} 23. Rd6 {[%clk 0:02:07.2]} 23... Rb8
{[%clk 0:01:41.3]} 24. Ne1 {[%clk 0:02:01.4]} 24... Bxg2 {[%clk 0:01:41.4]} 25.
Kxg2 {[%clk 0:02:03]} 25... Kf8 {[%clk 0:01:36.8]} 26. Nd3 {[%clk 0:01:59.5]}
26... Rc7 {[%clk 0:01:35.8]} 27. Nb4 {[%clk 0:01:59.1]} 27... Ra7 {[%clk
0:01:31.8]} 28. Rcd1 {[%clk 0:01:57.9]} 28... a5 {[%clk 0:01:22.2]} 29. Nc2
{[%clk 0:01:56.8]} 29... Ke7 {[%clk 0:01:20.9]} 30. Na3 {[%clk 0:01:53.2]} 30...
Ne8 {[%clk 0:01:16.9]} 31. R6d3 {[%clk 0:01:47.7]} 31... d6 {[%clk 0:01:16]} 32.
Nb5 {[%clk 0:01:48.2]} 32... Rd7 {[%clk 0:01:16.3]} 33. e4 {[%clk 0:01:31.7]}
33... e5 {[%clk 0:01:05.8]} 34. f4 {[%clk 0:01:27.4]} 34... Rbd8 {[%clk
0:01:01.3]} 35. Kf3 {[%clk 0:01:24.6]} 35... f6 {[%clk 0:00:59.9]} 36. f5 {[%clk
0:01:20.4]} 36... Nc7 {[%clk 0:00:56.2]} 37. Nc3 {[%clk 0:01:21.3]} 37... Rb8
{[%clk 0:00:46.4]} 38. Kg4 {[%clk 0:01:12.5]} 38... Na6 {[%clk 0:00:34.8]} 39.
Nd5+ {[%clk 0:01:10]} 39... Kf7 {[%clk 0:00:34.6]} 40. Nc3 {[%clk 0:01:10.4]}
40... Ke7 {[%clk 0:00:35.1]} 41. Nb5 {[%clk 0:01:00.2]} 41... Rbd8 {[%clk
0:00:32.9]} 42. Kf3 {[%clk 0:01:00.7]} 42... Nc5 {[%clk 0:00:33.1]} 43. R3d2
{[%clk 0:01:01.9]} 43... Na6 {[%clk 0:00:32.5]} 44. Nc3 {[%clk 0:00:58.3]} 44...
Nc7 {[%clk 0:00:30.5]} 45. h4 {[%clk 0:00:54.8]} 45... h5 {[%clk 0:00:30.4]} 46.
Rg1 {[%clk 0:00:47.8]} 46... Rh8 {[%clk 0:00:29.7]} 47. Na4 {[%clk 0:00:43.9]}
47... b5 {[%clk 0:00:23.1]} 48. Nb6 {[%clk 0:00:45]} 48... Rdd8 {[%clk
0:00:24.3]} 49. Rgd1 {[%clk 0:00:46.8]} 49... Rhg8 {[%clk 0:00:15.9]} 50. c5
{[%clk 0:00:45.4]} 50... Ne8 {[%clk 0:00:13.6]} 51. cxd6+ {[%clk 0:00:14]} 51...
Rxd6 {[%clk 0:00:14.7]} 52. Nc8+ {[%clk 0:00:14.3]} 1-0

[Event "*** Titled Tuesday 3|2 Blitz"]
[Site "Chess.com"]
[Date "2016.03.01"]
[Round "6"]
[White "VerdeNotte"]
[Black "VSERGUEI"]
[Result "1-0"]
[WhiteElo "2554"]
[BlackElo "2458"]
[TimeControl "180+2"]
[EndTime "12:47:56 PST"]
[Termination "VerdeNotte won on time"]

1. g3 {[%clk 0:03:01.9]} 1... d5 {[%clk 0:03:00]} 2. Bg2 {[%clk 0:03:03.3]} 2...
c5 {[%clk 0:03:00.6]} 3. c4 {[%clk 0:03:03.7]} 3... d4 {[%clk 0:03:01.2]} 4. b4
{[%clk 0:03:05.1]} 4... cxb4 {[%clk 0:03:01.9]} 5. a3 {[%clk 0:03:06.6]} 5... b3
{[%clk 0:03:02.7]} 6. Qxb3 {[%clk 0:03:05.5]} 6... Nc6 {[%clk 0:03:03.2]} 7. Nf3
{[%clk 0:03:01]} 7... Nf6 {[%clk 0:03:03.5]} 8. e3 {[%clk 0:03:00]} 8... e5
{[%clk 0:02:59.8]} 9. Qb5 {[%clk 0:03:00.3]} 9... a6 {[%clk 0:02:57.8]} 10. Qa4
{[%clk 0:03:00.6]} 10... Bd7 {[%clk 0:02:57.7]} 11. O-O {[%clk 0:02:59.1]} 11...
Bc5 {[%clk 0:02:56.3]} 12. d3 {[%clk 0:02:58.1]} 12... dxe3 {[%clk 0:02:53.5]}
13. Bxe3 {[%clk 0:02:58.5]} 13... Bxe3 {[%clk 0:02:52.3]} 14. fxe3 {[%clk
0:02:59.7]} 14... e4 {[%clk 0:02:53.4]} 15. dxe4 {[%clk 0:02:59.2]} 15... Nxe4
{[%clk 0:02:46.9]} 16. Qc2 {[%clk 0:02:54.2]} 16... Nc5 {[%clk 0:02:44.3]} 17.
Nc3 {[%clk 0:02:51.3]} 17... O-O {[%clk 0:02:43.4]} 18. Nd5 {[%clk 0:02:52.5]}
18... Re8 {[%clk 0:02:42.2]} 19. Rad1 {[%clk 0:02:51.4]} 19... h6 {[%clk
0:02:38.8]} 20. Nd4 {[%clk 0:02:49.7]} 20... Qa5 {[%clk 0:02:26.2]} 21. Rxf7
{[%clk 0:02:45.4]} 21... Kxf7 {[%clk 0:02:12.9]} 22. Rf1+ {[%clk 0:02:46]} 22...
Kg8 {[%clk 0:02:05]} 23. Nf6+ {[%clk 0:02:46.6]} 23... gxf6 {[%clk 0:02:04.2]}
24. Qg6+ {[%clk 0:02:46.9]} 24... Kh8 {[%clk 0:02:00.7]} 25. Qxh6+ {[%clk
0:02:47.4]} 25... Kg8 {[%clk 0:02:01.6]} 26. Qg6+ {[%clk 0:02:46.1]} 26... Kh8
{[%clk 0:02:02.5]} 27. Qxf6+ {[%clk 0:02:47.4]} 27... Kg8 {[%clk 0:01:59.1]} 28.
Qg6+ {[%clk 0:02:36.9]} 28... Kh8 {[%clk 0:01:58.6]} 29. Qh6+ {[%clk 0:02:33.8]}
29... Kg8 {[%clk 0:01:59.4]} 30. Bd5+ {[%clk 0:02:34.4]} 30... Be6 {[%clk
0:01:43.1]} 31. Nxe6 {[%clk 0:02:14.2]} 31... Nxe6 {[%clk 0:01:43.2]} 32. Bxe6+
{[%clk 0:02:03.9]} 32... Rxe6 {[%clk 0:01:43.3]} 33. Qxe6+ {[%clk 0:02:05.8]}
33... Kh8 {[%clk 0:01:43.2]} 34. Qh6+ {[%clk 0:01:58.5]} 34... Kg8 {[%clk
0:01:43.9]} 35. Qg6+ {[%clk 0:01:57.8]} 35... Kh8 {[%clk 0:01:45]} 36. Rf5
{[%clk 0:01:57]} 36... Qe1+ {[%clk 0:01:41]} 37. Kg2 {[%clk 0:01:58.2]} 37...
Qd2+ {[%clk 0:01:37.9]} 38. Kh3 {[%clk 0:01:51.5]} 38... Qd7 {[%clk 0:01:38.4]}
39. g4 {[%clk 0:01:50]} 39... Qg7 {[%clk 0:01:28.8]} 40. Rh5+ {[%clk 0:01:50.4]}
40... Kg8 {[%clk 0:01:29.3]} 41. Qe6+ {[%clk 0:01:51.6]} 41... Qf7 {[%clk
0:01:26.4]} 42. Rg5+ {[%clk 0:01:52.5]} 42... Kf8 {[%clk 0:01:27.1]} 43. Rf5
{[%clk 0:01:53.7]} 43... Nd8 {[%clk 0:01:28.1]} 44. Qd6+ {[%clk 0:01:43]} 44...
Kg8 {[%clk 0:01:27]} 45. Rxf7 {[%clk 0:01:38.3]} 45... Nxf7 {[%clk 0:01:27]} 46.
Qd5 {[%clk 0:01:34.3]} 46... Re8 {[%clk 0:01:26.1]} 47. Qxb7 {[%clk 0:01:33.9]}
47... Rxe3+ {[%clk 0:01:25.1]} 48. Kh4 {[%clk 0:01:35.3]} 48... Rxa3 {[%clk
0:01:24.9]} 49. Qb8+ {[%clk 0:01:28.9]} 49... Kh7 {[%clk 0:01:24.7]} 50. Qf8
{[%clk 0:00:58]} 50... Rf3 {[%clk 0:01:21]} 51. c5 {[%clk 0:00:58.2]} 51... Kg6
{[%clk 0:01:09.7]} 52. c6 {[%clk 0:00:32]} 52... Rc3 {[%clk 0:01:04.1]} 53. Qg8+
{[%clk 0:00:29.4]} 53... Kf6 {[%clk 0:01:04.2]} 54. g5+ {[%clk 0:00:30]} 54...
Ke7 {[%clk 0:01:01.2]} 55. g6 {[%clk 0:00:31.4]} 55... Rc4+ {[%clk 0:01:01.3]}
56. Kg3 {[%clk 0:00:32.5]} 56... Nd6 {[%clk 0:01:01.5]} 57. g7 {[%clk
0:00:26.1]} 57... Nf5+ {[%clk 0:00:56.2]} 58. Kf2 {[%clk 0:00:27.2]} 58... Rc2+
{[%clk 0:00:56.3]} 59. Ke1 {[%clk 0:00:28.2]} 59... Ne3 {[%clk 0:00:26.9]} 60.
Qf8+ {[%clk 0:00:24.8]} 60... Ke6 {[%clk 0:00:04.7]} 61. g8=Q+ {[%clk
0:00:25.3]} 1-0

[Event "*** Titled Tuesday 3|2 Blitz"]
[Site "Chess.com"]
[Date "2016.03.01"]
[Round "6"]
[White "KNVB"]
[Black "BahadirOzen"]
[Result "1/2-1/2"]
[WhiteElo "2369"]
[BlackElo "2548"]
[TimeControl "180+2"]
[EndTime "12:51:30 PST"]
[Termination "Game drawn - insufficient material"]

1. d4 {[%clk 0:03:01.4]} 1... d5 {[%clk 0:02:58.7]} 2. c4 {[%clk 0:03:01.4]}
2... e6 {[%clk 0:03:00.3]} 3. Nc3 {[%clk 0:03:01.7]} 3... Nf6 {[%clk 0:03:01.8]}
4. cxd5 {[%clk 0:03:01.1]} 4... exd5 {[%clk 0:03:03.7]} 5. Bg5 {[%clk
0:03:02.3]} 5... Be7 {[%clk 0:03:05]} 6. e3 {[%clk 0:03:03.8]} 6... O-O {[%clk
0:03:06.1]} 7. Bd3 {[%clk 0:03:05]} 7... Nbd7 {[%clk 0:03:07.6]} 8. Nge2 {[%clk
0:03:06]} 8... Re8 {[%clk 0:03:09.1]} 9. O-O {[%clk 0:03:07.4]} 9... c6 {[%clk
0:03:09.9]} 10. f3 {[%clk 0:03:08.7]} 10... Nf8 {[%clk 0:03:11.4]} 11. Bh4
{[%clk 0:03:10.1]} 11... Be6 {[%clk 0:03:07.5]} 12. Bf2 {[%clk 0:03:11.2]} 12...
Rc8 {[%clk 0:03:08.9]} 13. Qd2 {[%clk 0:03:11.7]} 13... a6 {[%clk 0:03:07.5]}
14. h3 {[%clk 0:03:09.5]} 14... c5 {[%clk 0:02:32]} 15. Rac1 {[%clk 0:02:56.2]}
15... Ng6 {[%clk 0:02:23.7]} 16. Rfd1 {[%clk 0:02:48.7]} 16... b5 {[%clk
0:01:59]} 17. dxc5 {[%clk 0:02:37.4]} 17... Bxc5 {[%clk 0:02:00.9]} 18. Nd4
{[%clk 0:02:33.5]} 18... Qb6 {[%clk 0:01:57.6]} 19. Nce2 {[%clk 0:02:25.6]}
19... Ne5 {[%clk 0:01:55.3]} 20. b3 {[%clk 0:02:26.1]} 20... Nxd3 {[%clk
0:01:55]} 21. Qxd3 {[%clk 0:02:28]} 21... Bd7 {[%clk 0:01:51.1]} 22. Rc2 {[%clk
0:02:28.3]} 22... Ba3 {[%clk 0:01:47.8]} 23. Rdd2 {[%clk 0:02:21.2]} 23... Bb4
{[%clk 0:01:46.3]} 24. Rxc8 {[%clk 0:02:21.7]} 24... Rxc8 {[%clk 0:01:45.5]} 25.
Rc2 {[%clk 0:02:23.6]} 25... Rxc2 {[%clk 0:01:37.7]} 26. Nxc2 {[%clk 0:02:19.3]}
26... Be7 {[%clk 0:01:31.2]} 27. Nf4 {[%clk 0:01:59.9]} 27... Qc6 {[%clk
0:01:20.2]} 28. g4 {[%clk 0:01:49.3]} 28... h6 {[%clk 0:01:20.8]} 29. Kg2 {[%clk
0:01:50.4]} 29... Bd6 {[%clk 0:01:14.5]} 30. Nd4 {[%clk 0:01:37.8]} 30... Qc7
{[%clk 0:01:10.7]} 31. Bg3 {[%clk 0:01:22.1]} 31... Be5 {[%clk 0:01:10.8]} 32.
Nfe2 {[%clk 0:01:18.8]} 32... Bxg3 {[%clk 0:01:01.3]} 33. Nxg3 {[%clk
0:01:20.7]} 33... Qe5 {[%clk 0:01:02.9]} 34. Qc3 {[%clk 0:01:09.9]} 34... b4
{[%clk 0:00:54.1]} 35. Qd2 {[%clk 0:00:58.1]} 35... a5 {[%clk 0:00:52.1]} 36.
Nge2 {[%clk 0:00:50.7]} 36... g6 {[%clk 0:00:43.6]} 37. Nf4 {[%clk 0:00:47.9]}
37... Kg7 {[%clk 0:00:43]} 38. Nd3 {[%clk 0:00:48.7]} 38... Qe7 {[%clk
0:00:42.7]} 39. Nf4 {[%clk 0:00:41.9]} 39... Qe5 {[%clk 0:00:43.4]} 40. Nde2
{[%clk 0:00:40.7]} 40... Qa1 {[%clk 0:00:20.7]} 41. Qd4 {[%clk 0:00:17]} 41...
Qxd4 {[%clk 0:00:10.2]} 42. Nxd4 {[%clk 0:00:18.9]} 42... Kf8 {[%clk 0:00:11.7]}
43. h4 {[%clk 0:00:18.6]} 43... g5 {[%clk 0:00:06]} 44. hxg5 {[%clk 0:00:18.3]}
44... hxg5 {[%clk 0:00:07.9]} 45. Nd3 {[%clk 0:00:08.8]} 45... Ke7 {[%clk
0:00:09]} 46. Kg3 {[%clk 0:00:07.3]} 46... Kd6 {[%clk 0:00:09.1]} 47. Ne1 {[%clk
0:00:07.2]} 47... Ne8 {[%clk 0:00:05]} 48. Kf2 {[%clk 0:00:07]} 48... Nc7 {[%clk
0:00:05.8]} 49. Nec2 {[%clk 0:00:07.7]} 49... Na6 {[%clk 0:00:07]} 50. Kg3
{[%clk 0:00:04.8]} 50... Nc5 {[%clk 0:00:07.4]} 51. a3 {[%clk 0:00:03.4]} 51...
Nd3 {[%clk 0:00:03.7]} 52. axb4 {[%clk 0:00:04.1]} 52... axb4 {[%clk 0:00:05.6]}
53. f4 {[%clk 0:00:03]} 53... f6 {[%clk 0:00:06.2]} 54. fxg5 {[%clk 0:00:03.7]}
54... fxg5 {[%clk 0:00:08.1]} 55. Nf3 {[%clk 0:00:05.6]} 55... Nc5 {[%clk
0:00:02.9]} 56. Nxb4 {[%clk 0:00:05.9]} 56... Nxb3 {[%clk 0:00:04.4]} 57. Nxg5
{[%clk 0:00:07.5]} 57... Nd2 {[%clk 0:00:03.3]} 58. Nf3 {[%clk 0:00:07]} 58...
Ne4+ {[%clk 0:00:04.4]} 59. Kf4 {[%clk 0:00:08.5]} 59... Nf6 {[%clk 0:00:03.8]}
60. Nh2 {[%clk 0:00:08]} 60... Kc5 {[%clk 0:00:03.4]} 61. Nd3+ {[%clk
0:00:08.8]} 61... Kd6 {[%clk 0:00:05.3]} 62. Ne1 {[%clk 0:00:06.8]} 62... Kc5
{[%clk 0:00:04.8]} 63. Nc2 {[%clk 0:00:04.9]} 63... Kd6 {[%clk 0:00:04.9]} 64.
Nd4 {[%clk 0:00:06.3]} 64... Bc8 {[%clk 0:00:06.5]} 65. Ne2 {[%clk 0:00:06.6]}
65... Bd7 {[%clk 0:00:07.2]} 66. Ng3 {[%clk 0:00:08.1]} 66... Nh7 {[%clk
0:00:07.1]} 67. g5 {[%clk 0:00:09.2]} 67... Nf8 {[%clk 0:00:08.8]} 68. Ne2
{[%clk 0:00:07.8]} 68... Ne6+ {[%clk 0:00:10.1]} 69. Kg3 {[%clk 0:00:04.9]}
69... Nxg5 {[%clk 0:00:11.4]} 70. Nd4 {[%clk 0:00:06.3]} 70... Ne4+ {[%clk
0:00:12.6]} 71. Kf4 {[%clk 0:00:07.4]} 71... Nc5 {[%clk 0:00:11.6]} 72. Nhf3
{[%clk 0:00:06.4]} 72... Ne6+ {[%clk 0:00:12.8]} 73. Nxe6 {[%clk 0:00:07.2]}
73... Bxe6 {[%clk 0:00:14.7]} 74. Nd4 {[%clk 0:00:08.5]} 74... Bd7 {[%clk
0:00:16]} 75. Kf3 {[%clk 0:00:10]} 75... Be8 {[%clk 0:00:17.3]} 76. Ke2 {[%clk
0:00:11.7]} 76... Ke5 {[%clk 0:00:18.7]} 77. Kd3 {[%clk 0:00:13.1]} 77... Bg6+
{[%clk 0:00:19.7]} 78. Kd2 {[%clk 0:00:14.5]} 78... Be8 {[%clk 0:00:21.4]} 79.
Ke2 {[%clk 0:00:15.2]} 79... Bh5+ {[%clk 0:00:21.7]} 80. Kd2 {[%clk 0:00:15.8]}
80... Ke4 {[%clk 0:00:23]} 81. Ne6 {[%clk 0:00:15.9]} 81... Be8 {[%clk
0:00:23.6]} 82. Nc5+ {[%clk 0:00:15.1]} 82... Ke5 {[%clk 0:00:24.6]} 83. Kc3
{[%clk 0:00:15.5]} 83... Bg6 {[%clk 0:00:25.6]} 84. Nb3 {[%clk 0:00:09.2]} 84...
Ke4 {[%clk 0:00:24.7]} 85. Kd2 {[%clk 0:00:10.6]} 85... Ke5 {[%clk 0:00:26.3]}
86. Nd4 {[%clk 0:00:11]} 86... Bh7 {[%clk 0:00:27.3]} 87. Nf3+ {[%clk
0:00:11.6]} 87... Kd6 {[%clk 0:00:26.5]} 88. Kc3 {[%clk 0:00:11.8]} 88... Be4
{[%clk 0:00:27.8]} 89. Ng5 {[%clk 0:00:11.7]} 89... Ke5 {[%clk 0:00:29.2]} 90.
Nf7+ {[%clk 0:00:12.5]} 90... Kf6 {[%clk 0:00:30.2]} 91. Nd8 {[%clk 0:00:11.9]}
91... Ke7 {[%clk 0:00:26.7]} 92. Nc6+ {[%clk 0:00:08.6]} 92... Kd6 {[%clk
0:00:28.6]} 93. Na5 {[%clk 0:00:08.3]} 93... Bg6 {[%clk 0:00:28]} 94. Kd4 {[%clk
0:00:09.4]} 94... Bf7 {[%clk 0:00:28.5]} 95. Nb7+ {[%clk 0:00:10.1]} 95... Kc7
{[%clk 0:00:28.7]} 96. Nc5 {[%clk 0:00:10.4]} 96... Kd6 {[%clk 0:00:30.1]} 97.
Nd3 {[%clk 0:00:11.7]} 97... Bg6 {[%clk 0:00:30.7]} 98. Ne5 {[%clk 0:00:11.7]}
98... Be4 {[%clk 0:00:31.4]} 99. Nf7+ {[%clk 0:00:10.7]} 99... Ke7 {[%clk
0:00:30.4]} 100. Ng5 {[%clk 0:00:11.6]} 100... Bg2 {[%clk 0:00:31.2]} 101. Ke5
{[%clk 0:00:13]} 101... Kd7 {[%clk 0:00:32]} 102. Ne6 {[%clk 0:00:13.1]} 102...
Kc6 {[%clk 0:00:32.7]} 103. Nf4 {[%clk 0:00:11.8]} 103... Bh1 {[%clk 0:00:34]}
104. Ne6 {[%clk 0:00:09.9]} 104... Bg2 {[%clk 0:00:33.7]} 105. Nf4 {[%clk
0:00:09.9]} 105... Bh1 {[%clk 0:00:34.8]} 106. Nd3 {[%clk 0:00:11.6]} 106... Bg2
{[%clk 0:00:33.6]} 107. Kd4 {[%clk 0:00:04.4]} 107... Kd6 {[%clk 0:00:33.9]}
108. Nf4 {[%clk 0:00:04.2]} 108... Bh1 {[%clk 0:00:35.2]} 109. Ng6 {[%clk
0:00:03]} 109... Be4 {[%clk 0:00:36.4]} 110. Nf4 {[%clk 0:00:04.2]} 110... Bh1
{[%clk 0:00:37.9]} 111. Ne2 {[%clk 0:00:05.6]} 111... Bf3 {[%clk 0:00:38]} 112.
Ng3 {[%clk 0:00:06.8]} 112... Bg2 {[%clk 0:00:38.8]} 113. Nf5+ {[%clk
0:00:06.4]} 113... Ke6 {[%clk 0:00:34.1]} 114. Ng3 {[%clk 0:00:05.1]} 114... Kd6
{[%clk 0:00:32.9]} 115. e4 {[%clk 0:00:06.8]} 115... dxe4 {[%clk 0:00:33.3]}
116. Nxe4+ {[%clk 0:00:08.7]} 116... Kc6 {[%clk 0:00:34.3]} 117. Nd2 {[%clk
0:00:08.3]} 117... Bh1 {[%clk 0:00:35.3]} 118. Ne4 {[%clk 0:00:09.3]} 118...
Bxe4 {[%clk 0:00:35.6]} 1/2-1/2

[Event "*** Titled Tuesday 3|2 Blitz"]
[Site "Chess.com"]
[Date "2016.03.01"]
[Round "7"]
[White "Abdodi"]
[Black "SabinoBrunello"]
[Result "0-1"]
[WhiteElo "1990"]
[BlackElo "2473"]
[TimeControl "180+2"]
[EndTime "13:00:53 PST"]
[Termination "SabinoBrunello won by checkmate"]

1. e4 {[%clk 0:03:01.9]} 1... e5 {[%clk 0:03:00.2]} 2. Nf3 {[%clk 0:03:02.6]}
2... Nc6 {[%clk 0:03:00.2]} 3. d4 {[%clk 0:03:03.7]} 3... exd4 {[%clk 0:03:00]}
4. Nxd4 {[%clk 0:03:04.7]} 4... Bc5 {[%clk 0:03:01.7]} 5. Be3 {[%clk 0:03:05.6]}
5... Qf6 {[%clk 0:03:02.2]} 6. c3 {[%clk 0:03:06.7]} 6... Nge7 {[%clk
0:03:02.9]} 7. Bc4 {[%clk 0:03:07.1]} 7... O-O {[%clk 0:02:58.6]} 8. O-O {[%clk
0:03:06.5]} 8... Ne5 {[%clk 0:02:54.6]} 9. Be2 {[%clk 0:03:06.1]} 9... Qg6
{[%clk 0:02:48.7]} 10. Nf5 {[%clk 0:02:43.7]} 10... Nxf5 {[%clk 0:02:22.8]} 11.
Bxc5 {[%clk 0:02:36.6]} 11... Nh4 {[%clk 0:02:21.7]} 12. g3 {[%clk 0:02:28.8]}
12... d6 {[%clk 0:02:20.4]} 13. Bd4 {[%clk 0:02:22.3]} 13... Bh3 {[%clk
0:02:16]} 14. Re1 {[%clk 0:02:16.1]} 14... Qxe4 {[%clk 0:02:10.4]} 15. f3 {[%clk
0:01:39.7]} 15... Nhxf3+ {[%clk 0:02:07]} 16. Bxf3 {[%clk 0:01:36.8]} 16...
Nxf3+ {[%clk 0:02:06.6]} 17. Kf2 {[%clk 0:01:34.8]} 17... Nxe1 {[%clk
0:02:06.8]} 18. Nd2 {[%clk 0:01:25.6]} 18... Nd3+ {[%clk 0:02:05.6]} 19. Kg1
{[%clk 0:01:20.3]} 19... Qg2# {[%clk 0:02:07.5]} 0-1

[Event "*** Titled Tuesday 3|2 Blitz"]
[Site "Chess.com"]
[Date "2016.03.01"]
[Round "7"]
[White "ftorodent"]
[Black "Tirantes"]
[Result "0-1"]
[WhiteElo "2284"]
[BlackElo "2225"]
[TimeControl "180+2"]
[EndTime "13:01:20 PST"]
[Termination "Tirantes won by resignation"]

1. d4 {[%clk 0:03:01.9]} 1... d5 {[%clk 0:02:59.6]} 2. c4 {[%clk 0:03:02.6]}
2... e6 {[%clk 0:03:00.2]} 3. Nf3 {[%clk 0:03:03]} 3... Nf6 {[%clk 0:02:59.8]}
4. Nc3 {[%clk 0:03:03.5]} 4... Be7 {[%clk 0:03:00.3]} 5. Bf4 {[%clk 0:03:04]}
5... O-O {[%clk 0:03:00.7]} 6. e3 {[%clk 0:03:05]} 6... c5 {[%clk 0:02:59.9]} 7.
dxc5 {[%clk 0:03:05.1]} 7... Bxc5 {[%clk 0:02:59.7]} 8. Qc2 {[%clk 0:03:06.7]}
8... Nc6 {[%clk 0:02:58.3]} 9. a3 {[%clk 0:03:06.9]} 9... Qa5 {[%clk 0:02:51]}
10. Be2 {[%clk 0:03:07]} 10... Ne4 {[%clk 0:02:28.1]} 11. cxd5 {[%clk
0:02:59.2]} 11... Nxc3 {[%clk 0:02:17.3]} 12. bxc3 {[%clk 0:02:53.1]} 12... exd5
{[%clk 0:02:15.6]} 13. O-O {[%clk 0:02:52.7]} 13... Rd8 {[%clk 0:01:49.3]} 14.
Rfd1 {[%clk 0:02:47]} 14... g6 {[%clk 0:01:42.3]} 15. Nd4 {[%clk 0:02:41.2]}
15... Be7 {[%clk 0:01:14.4]} 16. Nb5 {[%clk 0:02:41.3]} 16... Bf5 {[%clk
0:01:04]} 17. Qb3 {[%clk 0:02:41.1]} 17... Rac8 {[%clk 0:00:53.1]} 18. Rxd5
{[%clk 0:02:34.3]} 18... Rxd5 {[%clk 0:00:40]} 19. Qxd5 {[%clk 0:02:35]} 19...
a6 {[%clk 0:00:36.3]} 20. Nd4 {[%clk 0:02:34]} 20... Qxd5 {[%clk 0:00:33.8]} 0-1